bitfinex-derivatives/quotes_SOLF0:USTF0_20250816
["timestamp","ask_amount","ask_price","bid_price","bid_amount"]
[1755335511919,4.05725636,188.35,188.34,2.96]
[1755335513521,3.0,188.37,188.34,2.96]
[1755335513722,4.05803088,188.36,188.34,2.96]
[1755335514025,3.0,188.37,188.34,2.96]
[1755335514226,4.0576413,188.36,188.34,2.96]
[1755335514427,3.0,188.37,188.34,2.96]
[1755335514629,4.0576578,188.36,188.34,2.96]
[1755335514828,3.0,188.37,188.34,2.96]
[1755335515124,7.05764151,188.36,188.34,2.96]
[1755335515326,3.0,188.36,188.34,2.96]
[1755335516933,3.0,188.36,188.35,2.96]
[1755335517434,7.05673054,188.36,188.35,2.96]
[1755335517634,3.0,188.35,188.29,2.85179848]
[1755335517934,3.0,188.34,188.3,2.96]
[1755335518329,4.44179192,188.39,188.3,2.96]
[1755335518528,3.0,188.33,188.3,2.96]
[1755335518928,7.44179192,188.38,188.3,2.96]
[1755335519133,3.0,188.36,188.3,2.96]
[1755335519328,3.0,188.34,188.3,2.96]
[1755335521135,3.0,188.38,188.3,2.96]
[1755335521336,3.0,188.36,188.3,2.96]
[1755335521535,4.05472277,188.35,188.3,2.96]
[1755335521731,3.0,188.34,188.3,2.96]
[1755335521925,3.0,188.33,188.3,2.96]
[1755335524735,3.0,188.38,188.3,2.96]
[1755335525035,3.0,188.36,188.3,2.96]
[1755335525237,7.0522597,188.35,188.3,2.96]
[1755335525433,3.0,188.35,188.3,2.96]
[1755335525829,3.0,188.34,188.3,2.96]
[1755335526031,3.0,188.33,188.3,2.96]
[1755335527033,3.0,188.35,188.3,2.96]
[1755335527338,4.44179192,188.4,188.3,2.96]
[1755335527538,3.0,188.38,188.3,2.96]
[1755335527836,3.0,188.36,188.3,2.96]
[1755335528037,3.0,188.36,188.3,8.2666]
[1755335528239,4.44179192,188.4,188.31,2.96]
[1755335528436,3.0,188.35,188.31,2.96]
[1755335528939,3.0,188.34,188.31,2.96]
[1755335529935,4.44179192,188.4,188.31,2.96]
[1755335529936,3.0,188.39,188.31,2.96]
[1755335530136,3.0,188.37,188.31,2.96]
[1755335530332,8.76500871,188.42,188.31,2.96]
[1755335530333,4.05137657,188.36,188.31,2.96]
[1755335530527,3.0,188.34,188.31,2.96]
[1755335530727,4.05137657,188.35,188.31,2.96]
[1755335530728,3.0,188.33,188.31,2.96]
[1755335531439,3.0,188.33,188.32,2.96]
[1755335531634,4.44179192,188.4,188.29,2.85179848]
[1755335531839,11.82302063,188.39,188.29,5.81179848]
[1755335532038,3.0,188.37,188.3,2.96]
[1755335532240,3.0,188.35,188.3,2.96]
[1755335533141,3.0,188.33,188.3,2.96]
[1755335533643,3.0,188.33,188.31,2.96]
[1755335534739,4.44179192,188.38,188.31,2.96]
[1755335534940,3.0,188.36,188.31,2.96]
[1755335535141,3.0,188.34,188.31,2.96]
[1755335535342,3.0,188.33,188.31,2.96]
[1755335538154,3.0,188.31,188.28,2.96]
[1755335538644,3.0,188.31,188.26,2.92]
[1755335538846,3.0,188.31,188.27,2.92]
[1755335540143,4.05836729,188.3,188.27,2.92]
[1755335540345,2.84,188.34,188.23,2.92]
[1755335540546,7.28179192,188.32,188.23,2.92]
[1755335540753,2.84,188.3,188.23,2.92]
[1755335540951,4.05786293,188.29,188.23,2.92]
[1755335541246,2.84,188.27,188.21,2.92]
[1755335542353,2.84,188.25,188.22,2.92]
[1755335542554,2.84,188.23,188.22,2.92]
[1755335544255,2.84,188.23,188.18,2.92]
[1755335545452,2.84,188.27,188.17,2.85179848]
[1755335545756,2.84,188.25,188.17,2.92]
[1755335545958,2.84,188.23,188.17,2.92]
[1755335546256,2.84,188.21,188.17,2.92]
[1755335546462,2.84,188.19,188.17,2.92]
[1755335546952,2.84,188.19,188.15,2.92]
[1755335547356,2.84,188.19,188.11,2.92]
[1755335547558,4.07026736,188.18,188.11,2.92]
[1755335547758,2.84,188.17,188.11,2.92]
[1755335548162,2.84,188.17,188.07,2.85179848]
[1755335548359,2.84,188.17,188.08,2.92]
[1755335554268,2.84,188.17,188.1,2.92]
[1755335555969,2.84,188.17,188.12,2.92]
[1755335556761,2.84,188.17,188.12,5.77179848]
[1755335556962,2.84,188.17,188.13,2.92]
[1755335557163,2.84,188.16,188.13,2.92]
[1755335557358,2.84,188.15,188.12,2.85179848]
[1755335557559,2.85179848,188.25,188.05,129.84]
[1755335557560,2.84,188.21,188.09,2.85179848]
[1755335557768,2.84,188.19,188.11,2.92]
[1755335559970,2.84,188.18,188.11,2.92]
[1755335561367,2.84,188.15,188.11,2.92]
[1755335561566,2.84,188.15,188.13,0.03607835]
[1755335564771,0.03922512,188.16,188.13,2.95607835]
[1755335564967,2.87922512,188.16,188.13,2.95607835]
[1755335565272,2.84,188.15,188.13,2.95607835]
[1755335565571,2.84,188.15,188.13,0.03607835]
[1755335565772,2.84,188.15,188.14,2.92]
[1755335566072,2.84,188.15,188.13,0.03607835]
[1755335566273,2.84,188.15,188.13,2.95607835]
[1755335566470,2.84,188.14,188.13,2.95607835]
[1755335567863,2.84,188.14,188.13,0.03607835]
[1755335572273,6.88389441,188.14,188.13,0.03607835]
[1755335573076,2.84,188.14,188.13,0.03607835]
[1755335574472,6.88652579,188.14,188.13,0.03607835]
[1755335575983,6.88652579,188.14,188.13,2.90607835]
[1755335578287,6.88652579,188.14,188.13,0.03607835]
[1755335579383,7.41652579,188.14,188.13,0.03607835]
[1755335579683,12.18508489,188.14,188.13,0.03607835]
[1755335580087,11.85831771,188.14,188.13,0.03607835]
[1755335580387,16.62935039,188.14,188.13,0.03607835]
[1755335580990,2.83,188.13,188.02,2.87]
[1755335581189,2.83,188.1,188.02,2.87]
[1755335581388,2.83,188.08,188.02,2.87]
[1755335581587,4.04652579,188.07,188.02,2.87]
[1755335581791,4.04652579,188.06,188.02,2.87]
[1755335581992,2.83,188.07,188.02,2.87]
[1755335582191,4.09554922,188.06,188.02,2.87]
[1755335582485,0.03707445,188.06,188.03,2.85179848]
[1755335582690,0.03707445,188.06,188.04,2.87]
[1755335591697,2.86707445,188.06,188.04,2.87]
[1755335591896,4.08172264,188.05,188.04,2.87]
[1755335592695,6.91172264,188.05,188.04,2.87]
[1755335592901,2.83,188.04,188.01,2.87]
[1755335593201,2.83,188.05,188.01,2.87]
[1755335593403,4.0961139,188.04,188.01,2.87]
[1755335593602,2.83,188.04,188.01,2.87]
[1755335594001,2.83,188.03,188.01,2.87]
[1755335594502,2.83,188.04,188.01,2.87]
[1755335595304,2.83,188.04,188.02,2.87]
[1755335595504,0.03707445,188.06,188.02,2.87]
[1755335595703,4.09504061,188.05,188.02,2.87]
[1755335596003,0.03707445,188.06,188.02,2.87]
[1755335596200,6.92514267,188.05,188.02,2.87]
[1755335596405,2.83,188.03,188.02,2.87]
[1755335596606,6.9246605,188.03,187.95,2.87]
[1755335596805,4.0946605,188.02,187.95,2.87]
[1755335597006,6.9246605,188.01,187.95,2.87]
[1755335597299,0.03472109,188.0,187.95,2.87]
[1755335599007,0.03472109,188.0,187.96,5.3164]
[1755335599209,0.03472109,188.0,187.97,3.03]
[1755335600504,3.01472109,188.0,187.97,3.03]
[1755335601411,0.03472109,188.0,187.97,3.03]
[1755335602311,3.01472109,188.0,187.97,3.03]
[1755335606314,0.03472109,188.0,187.97,5.88179848]
[1755335606615,0.03472109,188.0,187.98,3.03]
[1755335609614,3.01472109,188.0,187.98,3.03]
[1755335610115,2.98,187.99,187.98,3.03]
[1755335612316,2.98,187.99,187.97,2.85179848]
[1755335612520,2.98,187.99,187.97,3.03]
[1755335613213,2.98,187.99,187.98,3.03]
[1755335614218,0.03472109,188.0,187.98,3.03]
[1755335614617,0.03472109,188.0,187.98,5.3157]
[1755335614918,0.03472109,188.0,187.99,3.03]
[1755335616318,0.03472109,188.0,187.99,8.3456]
[1755335622422,2.98,188.04,188.02,3.03]
[1755335622622,4.43738142,188.09,188.01,5.3149]
[1755335622823,2.98,188.03,188.01,5.3149]
[1755335623318,2.98,188.08,188.03,3.03]
[1755335623618,4.09229675,188.07,188.03,2.85179848]
[1755335623821,2.98,188.05,188.03,2.85179848]
[1755335624324,2.98,188.05,188.03,5.88179848]
[1755335624522,2.98,188.05,187.97,173.94]
[1755335624523,2.98,188.09,188.01,3.03]
[1755335624726,4.09382526,188.08,188.05,3.03]
[1755335625024,2.98,188.08,188.05,3.03]
[1755335625424,2.98,188.08,188.03,2.85179848]
[1755335625618,4.43738142,188.13,188.07,3.03]
[1755335625822,2.98,188.11,188.08,3.03]
[1755335626027,4.09430039,188.1,188.08,3.03]
[1755335626329,7.07430039,188.09,188.08,3.03]
[1755335626731,2.98,188.08,188.07,3.03]
[1755335628032,2.98,188.13,188.07,3.03]
[1755335628227,2.98,188.11,188.07,3.03]
[1755335628435,7.03388528,188.1,188.07,3.03]
[1755335628632,2.94,188.1,188.07,3.03]
[1755335629235,2.94,188.1,188.08,3.12]
[1755335629529,4.43738142,188.15,188.08,3.12]
[1755335629731,2.94,188.1,188.08,3.12]
[1755335629927,2.94,188.13,188.06,3.12]
[1755335630234,2.94,188.11,188.04,3.12]
[1755335630436,2.94,188.09,188.06,3.12]
[1755335631734,2.94,188.08,188.06,3.12]
[1755335633239,2.94,188.08,188.06,5.97179848]
[1755335633436,4.43738142,188.15,188.06,2.85179848]
[1755335633640,4.09354865,188.14,188.07,3.12]
[1755335633940,4.09354865,188.13,188.07,3.12]
[1755335634139,2.94,188.11,188.07,3.12]
[1755335634341,2.94,188.1,188.07,8.4333]
[1755335634541,2.94,188.1,188.08,3.12]
[1755335634837,2.94,188.14,188.08,8.433]
[1755335635035,4.09336437,188.13,188.09,3.12]
[1755335635236,2.94,188.11,188.09,3.12]
[1755335635938,2.94,188.11,188.1,3.12]
[1755335636741,2.94,188.11,188.08,3.12]
[1755335636942,2.94,188.16,188.08,3.12]
[1755335637142,2.94,188.14,188.08,3.12]
[1755335637438,4.43738142,188.17,188.08,3.12]
[1755335637439,2.94,188.12,188.08,3.12]
[1755335638639,2.94,188.1,188.08,3.12]
[1755335639544,2.94,188.09,188.08,3.12]
[1755335639843,4.43738142,188.17,188.08,3.12]
[1755335640144,2.94,188.15,188.1,2.85179848]
[1755335640351,4.09315425,188.14,188.12,3.12]
[1755335640546,2.94,188.13,188.12,3.12]
[1755335640941,2.94,188.13,188.1,2.85179848]
[1755335641136,2.94,188.13,188.1,5.97179848]
[1755335641545,2.94,188.13,188.08,3.12]
[1755335642349,2.94,188.12,188.08,3.12]
[1755335642647,2.94,188.12,188.09,3.12]
[1755335642846,2.94,188.11,188.09,3.12]
[1755335643147,2.94,188.11,188.1,3.12]
[1755335644646,2.94,188.1,188.07,2.85179848]
[1755335644845,2.94,188.1,188.08,3.12]
[1755335645549,2.94,188.09,188.08,3.12]
[1755335648551,2.94,188.09,188.05,2.85179848]
[1755335648753,2.94,188.08,188.07,3.12]
[1755335654459,2.94,188.12,187.99,44.0]
[1755335654759,2.94,188.1,188.0,3.12]
[1755335654959,2.94,188.08,188.0,3.12]
[1755335655159,4.44236816,188.12,188.0,3.12]
[1755335655160,2.94,188.06,188.0,3.12]
[1755335655750,2.94,188.06,188.0,8.4353]
[1755335655957,2.94,188.11,188.05,3.12]
[1755335656158,2.94,188.1,188.08,3.12]
[1755335658360,2.94,188.1,188.08,8.4331]
[1755335658658,3.07,188.12,188.09,2.93]
[1755335658860,7.19281591,188.11,188.09,2.93]
[1755335659061,3.07,188.11,188.09,2.93]
[1755335659456,3.07,188.15,188.08,2.93]
[1755335659756,4.44236816,188.16,188.09,2.93]
[1755335659757,3.07,188.13,188.09,2.93]
[1755335659962,3.07,188.11,188.09,2.93]
[1755335660762,3.07,188.13,188.08,2.93]
[1755335660959,3.07,188.11,188.08,2.93]
[1755335661154,3.07,188.1,188.08,2.93]
[1755335661555,3.07,188.14,188.08,2.93]
[1755335661759,4.12599533,188.13,188.08,2.93]
[1755335661956,4.12599533,188.12,188.08,2.93]
[1755335662161,3.07,188.1,188.08,2.93]
[1755335662672,4.44236816,188.15,188.07,2.85179848]
[1755335662869,3.07,188.09,188.07,2.85179848]
[1755335663369,2.85179848,188.19,188.05,2.93]
[1755335663370,3.07,188.13,188.05,2.93]
[1755335663570,3.07,188.11,188.05,2.93]
[1755335663871,3.07,188.09,188.05,2.93]
[1755335664364,3.07,188.08,188.05,2.93]
[1755335664876,4.44236816,188.14,188.05,2.93]
[1755335665077,3.07,188.12,188.05,2.93]
[1755335665278,7.20047247,188.11,188.05,2.93]
[1755335665475,4.13047247,188.1,188.05,5.3138]
[1755335665679,3.07,188.1,188.06,2.93]
[1755335666179,4.13396122,188.09,188.06,2.93]
[1755335666381,3.07,188.1,188.06,2.93]
[1755335667181,4.1364418,188.09,188.06,2.93]
[1755335667477,4.44236816,188.14,188.06,2.93]
[1755335667682,3.07,188.09,188.06,2.93]
[1755335668082,3.07,188.12,188.06,2.93]
[1755335668284,4.13704017,188.11,188.06,2.93]
[1755335668583,4.13704017,188.1,188.06,2.93]
[1755335668774,3.07,188.08,188.04,2.93]
[1755335669577,7.20943232,188.07,188.04,2.93]
[1755335669775,3.07,188.07,188.04,2.93]
[1755335671282,4.44236816,188.11,188.04,2.93]
[1755335671582,3.07,188.09,188.04,2.93]
[1755335671781,7.237812,188.08,188.04,2.93]
[1755335671986,4.167812,188.07,188.04,2.93]
[1755335672190,3.07,188.11,188.05,2.93]
[1755335672381,3.07,188.09,188.05,2.93]
[1755335672581,4.167933,188.08,188.05,2.93]
[1755335672885,4.167933,188.07,188.05,2.93]
[1755335673078,3.07,188.1,188.05,2.93]
[1755335673284,3.07,188.08,188.02,2.93]
[1755335673476,3.07,188.06,188.02,2.93]
[1755335674388,3.07,188.06,188.03,2.93]
[1755335678488,4.44236816,188.11,188.03,2.93]
[1755335678686,4.44236816,188.08,188.03,2.93]
[1755335678885,4.17187429,188.07,188.03,2.93]
[1755335679082,3.07,188.05,188.03,2.93]
[1755335679287,7.24187429,188.04,188.03,2.93]
[1755335679889,3.07,188.03,188.02,2.93]
[1755335682589,3.07,188.09,188.02,2.93]
[1755335682887,4.20261287,188.08,188.05,2.93]
[1755335683092,7.27261287,188.07,188.05,2.93]
[1755335683391,4.20261287,188.06,188.05,2.93]
[1755335684588,4.20261287,188.06,188.04,2.85179848]
[1755335684795,3.07,188.1,188.05,2.93]
[1755335684995,3.07,188.08,188.06,2.93]
[1755335685195,4.20168622,188.07,188.06,2.93]
[1755335685392,7.27168622,188.07,188.06,2.93]
[1755335685898,4.20168622,188.07,188.01,2.85179848]
[1755335686096,3.07,188.05,188.04,2.93]
[1755335686297,7.27168622,188.05,188.04,2.93]
[1755335687095,3.07,188.04,188.01,2.93]
[1755335687399,3.07,188.04,188.02,2.93]
[1755335687692,3.07,188.07,188.0,2.93]
[1755335687896,4.20155086,188.06,188.0,2.93]
[1755335688197,4.20155086,188.05,188.02,2.93]
[1755335688398,3.07,188.07,188.02,2.93]
[1755335688598,4.22631328,188.06,188.02,2.93]
[1755335688795,2.85,188.09,188.04,2.85179848]
[1755335689000,7.07656769,188.08,188.05,2.97]
[1755335689203,4.22656769,188.07,188.05,2.97]
[1755335689498,4.22656769,188.06,188.05,2.97]
[1755335689703,4.22656769,188.06,188.05,8.284]
[1755335689904,2.85,188.1,188.05,2.97]
[1755335690106,4.22856394,188.09,188.05,2.97]
[1755335690306,4.22856394,188.08,188.05,2.97]
[1755335690602,4.22856394,188.07,188.06,8.2837]
[1755335692907,2.85,188.12,188.09,2.97]
[1755335693106,7.07963928,188.11,188.09,2.97]
[1755335693302,4.22963928,188.1,188.09,2.97]
[1755335694209,4.22963928,188.1,188.09,8.2828]
[1755335695501,4.22963928,188.1,188.09,2.97]
[1755335695706,7.07963928,188.1,188.09,2.97]
[1755335696208,4.22963928,188.1,188.08,2.97]
[1755335696411,2.85,188.08,188.06,2.97]
[1755335696711,7.07963928,188.07,188.06,2.97]
[1755335697410,4.22963928,188.07,188.05,5.82179848]
[1755335697611,2.85,188.06,188.05,5.82179848]
[1755335697805,7.0813218,188.06,188.05,5.82179848]
[1755335700312,2.85,188.05,188.04,2.97]
[1755335700519,2.85,188.04,188.03,129.82]
[1755335700812,2.85,188.03,188.0,2.97]
[1755335701012,4.23071053,188.02,188.0,2.97]
[1755335701313,7.08170189,188.01,188.0,2.97]
[1755335701507,2.85,188.01,188.0,2.97]
[1755335702102,2.85,188.05,187.99,2.97]
[1755335702305,2.85,188.03,187.99,2.97]
[1755335702509,2.85,188.01,187.99,2.97]
[1755335702811,2.85,188.01,188.0,2.97]
[1755335703011,2.85,187.99,187.98,2.97]
[1755335703707,2.85,187.99,187.97,129.8]
[1755335704810,2.85,187.99,187.97,132.77]
[1755335705315,2.85,188.03,187.97,132.77]
[1755335705610,2.85,188.01,187.98,2.97]
[1755335705811,4.23847958,188.0,187.98,2.97]
[1755335706007,2.85,188.01,187.98,2.97]
[1755335706202,7.0883951,188.0,187.98,2.97]
[1755335706402,2.85,188.0,187.98,8.2859]
[1755335706606,2.85,188.0,187.99,2.97]
[1755335706803,7.08731153,188.0,187.99,2.97]
[1755335708415,2.85,187.99,187.98,2.97]
[1755335710415,2.85,188.01,187.98,2.97]
[1755335710615,2.85,188.0,187.98,2.97]
[1755335710823,2.85,188.04,187.98,2.97]
[1755335711112,2.85,188.02,187.98,2.97]
[1755335711313,2.85,188.0,187.98,2.97]
[1755335712416,2.85,188.0,187.97,135.1161]
[1755335712417,2.85,188.0,187.99,2.97]
[1755335714813,4.44236816,188.06,187.97,132.77]
[1755335715019,4.23664557,188.05,187.97,132.77]
[1755335715215,4.23664557,188.04,187.97,132.77]
[1755335715419,7.08664557,188.03,187.97,132.77]
[1755335715620,2.85,188.01,187.98,2.97]
[1755335716616,2.85,188.01,187.99,2.97]
[1755335717216,2.85,188.01,187.97,132.77]
[1755335717412,2.85,188.01,187.98,2.97]
[1755335718522,2.85,188.01,187.97,129.8]
[1755335718722,2.85,188.01,187.99,3.1]
[1755335719423,2.85,188.01,187.98,3.1]
[1755335719918,4.23856827,188.0,187.85,357.16]
[1755335720122,4.23856827,188.0,187.92,3.1]
[1755335720123,3.01,187.98,187.92,3.1]
[1755335720422,3.01,187.96,187.93,3.1]
[1755335720819,4.31443761,187.95,187.93,3.1]
[1755335721024,3.01,187.94,187.93,3.1]
[1755335721218,4.44236816,187.99,187.93,3.1]
[1755335721420,4.44236816,187.99,187.92,129.82]
[1755335721421,4.44236816,188.03,187.95,3.1]
[1755335721723,3.01,188.01,187.95,3.1]
[1755335721914,4.31548037,188.0,187.95,3.1]
[1755335722119,3.01,188.01,187.98,5.316]
[1755335722120,4.31548037,187.99,187.98,5.316]
[1755335722419,3.01,188.01,187.98,8.416]
[1755335722623,3.01,188.01,187.99,3.1]
[1755335722624,4.31509842,188.0,187.99,3.1]
[1755335722820,7.32509842,188.0,187.99,3.1]
[1755335723218,4.31509842,188.0,187.99,3.1]
[1755335724026,7.32509842,188.0,187.99,3.1]
[1755335726125,3.01,188.0,187.99,3.1]
[1755335726327,7.3246867,188.0,187.99,3.1]
[1755335727128,3.01,188.0,187.99,3.1]
[1755335727526,7.32459356,188.0,187.97,3.1]
[1755335727828,3.01,188.0,187.98,3.1]
[1755335729431,3.01,187.99,187.96,135.1564]
[1755335729828,3.01,187.99,187.97,3.1]
[1755335732029,3.01,188.03,187.96,129.84]
[1755335732226,3.01,188.01,187.97,3.1]
[1755335732427,4.31507279,188.0,187.98,3.1]
[1755335732725,3.01,187.99,187.97,3.1]
[1755335732934,4.44236816,188.04,187.96,129.84]
[1755335733129,4.31537436,188.03,187.96,129.84]
[1755335733329,3.01,188.01,187.97,3.1]
[1755335733533,3.01,187.98,187.96,129.84]
[1755335733930,3.01,188.03,187.96,129.84]
[1755335734131,3.01,188.01,187.97,3.1]
[1755335734435,3.01,187.99,187.97,3.1]
[1755335734623,3.01,187.98,187.96,129.84]
[1755335735133,3.01,187.98,187.97,3.1]
[1755335735832,3.01,188.03,187.97,3.1]
[1755335736032,3.01,188.01,187.97,3.1]
[1755335736230,3.01,187.99,187.97,3.1]
[1755335737935,3.01,187.98,187.97,3.1]
[1755335739140,7.34026901,187.98,187.97,3.1]
[1755335739338,4.33026901,187.98,187.97,3.1]
[1755335740640,4.44236816,188.03,187.97,5.3162]
[1755335740837,3.01,188.01,187.98,3.1]
[1755335741036,3.01,187.99,187.97,2.85179848]
[1755335741237,4.3325835,187.98,187.97,2.85179848]
[1755335741437,7.3425835,187.98,187.96,129.84]
[1755335741633,3.01,187.98,187.96,129.84]
[1755335741938,8.87810075,188.07,187.96,129.84]
[1755335741939,7.34543615,187.97,187.96,129.84]
[1755335742140,3.01,187.96,187.95,3.1]
[1755335742338,4.44236816,188.01,187.95,3.1]
[1755335742536,4.33788479,188.0,187.95,3.1]
[1755335742737,3.01,187.98,187.95,3.1]
[1755335742940,4.33788479,187.97,187.95,3.1]
[1755335743141,4.34007177,187.96,187.95,5.3168]
[1755335743639,4.34007177,187.96,187.95,8.4168]
[1755335743840,4.34007177,187.96,187.95,3.1]
[1755335745141,4.34007177,187.96,187.93,129.8]
[1755335745441,4.34193952,187.95,187.94,3.1]
[1755335745644,7.35193952,187.95,187.94,3.1]
[1755335745841,7.35193952,187.95,187.93,129.8]
[1755335746038,7.35193952,187.94,187.93,3.1]
[1755335746239,7.35193952,187.94,187.88,44.0]
[1755335746240,4.34193952,187.94,187.9,129.8]
[1755335746438,7.35193952,187.93,187.91,3.1]
[1755335746641,3.01,187.91,187.78,54.6428]
[1755335746847,3.01,187.89,187.82,3.1]
[1755335747045,4.34193952,187.88,187.82,129.8]
[1755335747342,3.01,187.86,187.83,3.1]
[1755335747543,3.01,187.89,187.83,3.1]
[1755335747744,3.01,187.89,187.84,3.1]
[1755335747745,3.01,187.87,187.84,3.1]
[1755335748046,3.01,187.85,187.84,3.1]
[1755335748245,3.01,187.84,187.83,3.1]
[1755335749347,3.01,187.84,187.82,129.8]
[1755335749548,3.01,187.84,187.82,132.93]
[1755335749746,3.03,187.88,187.82,129.8]
[1755335749946,3.03,187.86,187.82,132.93]
[1755335750146,3.03,187.83,187.82,132.93]
[1755335753447,3.03,187.83,187.82,3.13]
[1755335760558,7.29416664,187.92,187.82,3.13]
[1755335760759,3.03,187.9,187.82,3.13]
[1755335760958,3.03,187.88,187.82,3.13]
[1755335761454,3.03,187.88,187.79,129.84]
[1755335761656,3.03,187.86,187.8,3.13]
[1755335762159,3.03,187.86,187.82,3.13]
[1755335762361,3.03,187.93,187.84,5.98179848]
[1755335762657,3.03,187.91,187.88,3.13]
[1755335763258,3.03,187.91,187.89,5.3185]
[1755335763458,3.03,187.91,187.9,3.13]
[1755335770669,3.03,187.91,187.88,3.13]
[1755335770868,3.03,187.91,187.86,3.13]
[1755335772165,3.03,187.91,187.87,3.13]
[1755335774172,3.03,187.91,187.88,3.13]
[1755335774366,4.31765465,187.9,187.88,3.13]
[1755335774668,3.03,187.89,187.88,3.13]
[1755335775364,3.03,187.93,187.84,3.13]
[1755335775565,3.03,187.91,187.84,3.13]
[1755335775765,3.03,187.89,187.84,3.13]
[1755335777075,3.03,187.89,187.86,3.13]
[1755335779067,3.03,187.89,187.83,2.95]
[1755335780373,4.32248406,187.88,187.83,2.95]
[1755335780569,2.99,187.87,187.83,2.95]
[1755335781465,4.3232085,187.86,187.81,2.95]
[1755335781670,2.99,187.85,187.81,2.95]
[1755335782370,2.99,187.83,187.77,2.95]
[1755335782575,4.32251019,187.82,187.72,132.71179848]
[1755335782874,2.99,187.8,187.78,2.95]
[1755335783079,2.99,187.79,187.78,2.95]
[1755335784982,2.99,187.79,187.72,138.03499848]
[1755335785280,2.99,187.79,187.76,2.95]
[1755335785467,4.32386626,187.78,187.76,2.95]
[1755335785667,2.99,187.82,187.76,2.95]
[1755335785867,9.58636712,187.81,187.76,2.95]
[1755335786072,4.32422774,187.8,187.76,2.95]
[1755335786371,4.32422774,187.79,187.76,2.95]
[1755335786674,4.32422774,187.78,187.77,8.2717]
[1755335788473,4.32422774,187.78,187.77,2.95]
[1755335789474,4.32959252,187.78,187.77,2.95]
[1755335790676,4.32959252,187.78,187.77,8.2719]
[1755335791975,4.43625361,187.83,187.77,5.3219]
[1755335792184,2.99,187.8,187.78,2.95]
[1755335792479,4.33122805,187.79,187.78,2.95]
[1755335793083,7.32122805,187.79,187.78,2.95]
[1755335794280,2.99,187.78,187.77,2.95]
[1755335794478,7.32021137,187.78,187.77,2.95]
[1755335795985,4.33021137,187.78,187.77,2.95]
[1755335797578,2.99,187.79,187.77,2.95]
[1755335798582,2.99,187.78,187.77,2.95]
[1755335803591,2.99,187.84,187.77,3.49]
[1755335803793,2.99,187.84,187.81,2.95]
[1755335805288,2.99,187.84,187.8,2.85179848]
[1755335805289,2.99,187.84,187.82,5.3204]
[1755335805483,2.99,187.89,187.83,2.95]
[1755335805689,2.99,187.89,187.82,5.3204]
[1755335805690,2.99,187.87,187.84,2.95]